[Event "November 21 Early 2023"]
[Site "https://www.chess.com"]
[Date "2023.11.21"]
[Round "6"]
[White "Chigaev, Maksim"]
[Black "Vignesh N R"]
[Result "1-0"]
[Board "20"]
[TimeControl "180+1"]
[WhiteFideId "4108116"]
[BlackFideId "25012215"]
[WhiteElo "2561"]
[BlackElo "2425"]
[WhiteTeam "ESP"]
[BlackTeam "IND"]
[WhiteClock "0:00:10"]
[BlackClock "0:00:15"]

1. Nf3 {[%clk 0:03:00]}  Nf6 {[%clk 0:02:57]} 2. c4 {[%clk 0:02:59]}  e6 {[%clk 0:02:56]} 3. g3 {[%clk 0:03:00]}  d5 {[%clk 0:02:55]} 4. Bg2 {[%clk 0:03:00]}  dxc4 {[%clk 0:02:56]} 5. O-O {[%clk 0:03:00]}  Nbd7 {[%clk 0:02:55]} 6. Qc2 {[%clk 0:02:58]}  a6 {[%clk 0:02:54]} 7. a4 {[%clk 0:02:55]}  Rb8 {[%clk 0:02:53]} 8. Qxc4 {[%clk 0:02:47]}  b5 {[%clk 0:02:53]} 9. Qc2 {[%clk 0:02:45]}  Bb7 {[%clk 0:02:50]} 10. Nc3 {[%clk 0:02:37]}  b4 {[%clk 0:02:46]} 11. Nb1 {[%clk 0:02:37]}  c5 {[%clk 0:02:36]} 12. d3 {[%clk 0:02:37]}  Bd6 {[%clk 0:02:34]} 13. Nbd2 {[%clk 0:02:34]}  O-O {[%clk 0:02:34]} 14. Nc4 {[%clk 0:02:24]}  Qe7 {[%clk 0:02:34]} 15. e4 {[%clk 0:02:23]}  Ng4 {[%clk 0:02:28]} 16. Nxd6 {[%clk 0:02:08]}  Qxd6 {[%clk 0:02:28]} 17. Bf4 {[%clk 0:01:57]}  Nge5 {[%clk 0:02:26]} 18. Nxe5 {[%clk 0:01:50]}  Nxe5 {[%clk 0:02:26]} 19. Rfd1 {[%clk 0:01:51]}  a5 {[%clk 0:02:20]} 20. b3 {[%clk 0:01:49]}  Rfd8 {[%clk 0:02:15]} 21. Rd2 {[%clk 0:01:05]}  Rbc8 {[%clk 0:02:03]} 22. Rad1 {[%clk 0:01:05]}  Ba6 {[%clk 0:01:56]} 23. Qb2 {[%clk 0:00:59]}  f6 {[%clk 0:01:48]} 24. d4 {[%clk 0:01:00]}  cxd4 {[%clk 0:01:41]} 25. Rxd4 {[%clk 0:01:01]}  Qc7 {[%clk 0:01:26]} 26. Rxd8+ {[%clk 0:00:51]}  Rxd8 {[%clk 0:01:27]} 27. Rc1 {[%clk 0:00:49]}  Qd6 {[%clk 0:01:20]} 28. h3 {[%clk 0:00:49]}  Rc8 {[%clk 0:01:02]} 29. Rxc8+ {[%clk 0:00:44]}  Bxc8 {[%clk 0:01:03]} 30. Bxe5 {[%clk 0:00:31]}  fxe5 {[%clk 0:00:57]} 31. Qe2 {[%clk 0:00:29]}  Ba6 {[%clk 0:00:56]} 32. Qe3 {[%clk 0:00:27]}  Qd4 {[%clk 0:00:56]} 33. Qg5 {[%clk 0:00:27]}  h6 {[%clk 0:00:42]} 34. Qe7 {[%clk 0:00:23]}  Qb6 {[%clk 0:00:30]} 35. Bf3 {[%clk 0:00:13]}  Bd3 {[%clk 0:00:29]} 36. Bg4 {[%clk 0:00:12]}  Bxe4 {[%clk 0:00:28]} 37. Bxe6+ {[%clk 0:00:11]}  Kh7 {[%clk 0:00:28]} 38. Qe8 {[%clk 0:00:12]}  h5 {[%clk 0:00:20]} 39. Qg8+ {[%clk 0:00:10]}  Kg6 {[%clk 0:00:19]} 40. Qe8+ {[%clk 0:00:08]}  Kg5 {[%clk 0:00:17]} 41. h4+ {[%clk 0:00:08]}  Kh6 {[%clk 0:00:17]} 42. Bf7 {[%clk 0:00:07]}  Bh7 {[%clk 0:00:16]} 43. Qxe5 {[%clk 0:00:07]}  Qf6 {[%clk 0:00:16]} 44. Qe3+ {[%clk 0:00:05]}  g5 {[%clk 0:00:16]} 45. Bc4 {[%clk 0:00:06]}  Kg6 {[%clk 0:00:16]} 46. Bd3+ {[%clk 0:00:04]}  Kg7 {[%clk 0:00:17]} 47. Bxh7 {[%clk 0:00:03]}  Kxh7 {[%clk 0:00:16]} 48. Qxg5 {[%clk 0:00:03]}  Qc3 {[%clk 0:00:16]} 49. Qxh5+ {[%clk 0:00:04]}  Kg7 {[%clk 0:00:16]} 50. Qg5+ {[%clk 0:00:04]}  Kh7 {[%clk 0:00:17]} 51. Qd5 {[%clk 0:00:05]}  Kg6 {[%clk 0:00:15]} 52. Kg2 {[%clk 0:00:05]}  Kh6 {[%clk 0:00:15]} 53. g4 {[%clk 0:00:06]}  Kg6 {[%clk 0:00:16]} 54. Qe6+ {[%clk 0:00:05]}  Kg7 {[%clk 0:00:16]} 55. h5 {[%clk 0:00:06]}  Kh7 {[%clk 0:00:16]} 56. g5 {[%clk 0:00:06]}  Qd4 {[%clk 0:00:16]} 57. Qf7+ {[%clk 0:00:06]}  Kh8 {[%clk 0:00:17]} 58. Qe8+ {[%clk 0:00:06]}  Kg7 {[%clk 0:00:17]} 59. Qg6+ {[%clk 0:00:07]}  Kh8 {[%clk 0:00:17]} 60. Qf5 {[%clk 0:00:08]}  Kg7 {[%clk 0:00:16]} 61. Qf6+ {[%clk 0:00:08]}  Qxf6 {[%clk 0:00:16]} 62. gxf6+ {[%clk 0:00:09]}  Kxf6 {[%clk 0:00:17]} 63. f4 {[%clk 0:00:10]}  Kf5 {[%clk 0:00:15]} 64. Kg3 {[%clk 0:00:10]} 1-0

[Event "November 21 Early 2023"]
[Site "https://www.chess.com"]
[Date "2023.11.21"]
[Round "6"]
[White "Nagy, Gabor"]
[Black "Puranik, Abhimanyu"]
[Result "0-1"]
[Board "25"]
[TimeControl "180+1"]
[WhiteFideId "737119"]
[BlackFideId "5061245"]
[WhiteElo "2505"]
[BlackElo "2493"]
[WhiteTeam "HUN"]
[BlackTeam "IND"]
[WhiteClock "0:00:06"]
[BlackClock "0:00:13"]

1. e4 {[%clk 0:02:53]}  e6 {[%clk 0:02:59]} 2. d4 {[%clk 0:02:53]}  d5 {[%clk 0:02:59]} 3. Bd3 {[%clk 0:02:53]}  dxe4 {[%clk 0:02:58]} 4. Bxe4 {[%clk 0:02:54]}  Nf6 {[%clk 0:02:59]} 5. Bf3 {[%clk 0:02:53]}  Be7 {[%clk 0:02:57]} 6. Ne2 {[%clk 0:02:53]}  c5 {[%clk 0:02:56]} 7. Nbc3 {[%clk 0:02:41]}  O-O {[%clk 0:02:55]} 8. O-O {[%clk 0:02:37]}  a6 {[%clk 0:02:44]} 9. Bf4 {[%clk 0:02:29]}  Nc6 {[%clk 0:02:38]} 10. dxc5 {[%clk 0:02:06]}  Bxc5 {[%clk 0:02:38]} 11. Bg5 {[%clk 0:01:59]}  h6 {[%clk 0:02:31]} 12. Bh4 {[%clk 0:01:55]}  Ne5 {[%clk 0:02:26]} 13. Be4 {[%clk 0:01:33]}  Be7 {[%clk 0:02:01]} 14. Bg3 {[%clk 0:01:26]}  Nc4 {[%clk 0:01:57]} 15. b3 {[%clk 0:01:21]}  Nd2 {[%clk 0:01:48]} 16. Bd3 {[%clk 0:01:01]}  Nxf1 {[%clk 0:01:48]} 17. Qxf1 {[%clk 0:01:01]}  b5 {[%clk 0:01:46]} 18. a4 {[%clk 0:00:59]}  b4 {[%clk 0:01:44]} 19. Ne4 {[%clk 0:00:55]}  Bb7 {[%clk 0:01:43]} 20. Nxf6+ {[%clk 0:00:54]}  Bxf6 {[%clk 0:01:44]} 21. Rd1 {[%clk 0:00:55]}  Qb6 {[%clk 0:01:38]} 22. Nf4 {[%clk 0:00:55]}  Rfd8 {[%clk 0:01:35]} 23. Nh5 {[%clk 0:00:52]}  Bc3 {[%clk 0:01:31]} 24. h3 {[%clk 0:00:50]}  e5 {[%clk 0:01:24]} 25. Qe2 {[%clk 0:00:47]}  e4 {[%clk 0:01:20]} 26. Bc4 {[%clk 0:00:46]}  Rxd1+ {[%clk 0:01:12]} 27. Qxd1 {[%clk 0:00:47]}  Rd8 {[%clk 0:01:10]} 28. Qg4 {[%clk 0:00:46]}  e3 {[%clk 0:01:10]} 29. fxe3 {[%clk 0:00:40]}  Qxe3+ {[%clk 0:01:08]} 30. Bf2 {[%clk 0:00:36]}  Qg5 {[%clk 0:01:06]} 31. Qxg5 {[%clk 0:00:13]}  hxg5 {[%clk 0:01:06]} 32. Bd3 {[%clk 0:00:12]}  g6 {[%clk 0:01:00]} 33. Ng3 {[%clk 0:00:12]}  f5 {[%clk 0:01:00]} 34. Ne2 {[%clk 0:00:12]}  Bd2 {[%clk 0:00:53]} 35. Bb6 {[%clk 0:00:11]}  Re8 {[%clk 0:00:52]} 36. Kf1 {[%clk 0:00:10]}  Kg7 {[%clk 0:00:49]} 37. Bd4+ {[%clk 0:00:10]}  Kh6 {[%clk 0:00:49]} 38. a5 {[%clk 0:00:09]}  f4 {[%clk 0:00:48]} 39. Ng1 {[%clk 0:00:09]}  Be3 {[%clk 0:00:47]} 40. Bf6 {[%clk 0:00:08]}  Be4 {[%clk 0:00:40]} 41. Bxa6 {[%clk 0:00:07]}  Ra8 {[%clk 0:00:29]} 42. Bc4 {[%clk 0:00:06]}  Rxa5 {[%clk 0:00:27]} 43. Nf3 {[%clk 0:00:07]}  Bxf3 {[%clk 0:00:21]} 44. gxf3 {[%clk 0:00:06]}  Bd2 {[%clk 0:00:20]} 45. Ke2 {[%clk 0:00:06]}  Bc3 {[%clk 0:00:13]} 46. Bxc3 {[%clk 0:00:06]}  bxc3 {[%clk 0:00:14]} 47. b4 {[%clk 0:00:06]}  Ra4 {[%clk 0:00:14]} 48. Kd3 {[%clk 0:00:05]}  Rxb4 {[%clk 0:00:14]} 49. Kxc3 {[%clk 0:00:05]}  Rb1 {[%clk 0:00:14]} 50. Kd4 {[%clk 0:00:06]}  Kh5 {[%clk 0:00:14]} 51. Be6 {[%clk 0:00:06]}  Kh4 {[%clk 0:00:14]} 52. Bg4 {[%clk 0:00:06]}  Rd1+ {[%clk 0:00:12]} 53. Ke5 {[%clk 0:00:06]}  Rc1 {[%clk 0:00:12]} 54. Kf6 {[%clk 0:00:06]}  Rxc2 {[%clk 0:00:12]} 55. Kxg6 {[%clk 0:00:06]}  Rh2 {[%clk 0:00:12]} 56. Kf5 {[%clk 0:00:06]}  Rxh3 {[%clk 0:00:12]} 57. Bxh3 {[%clk 0:00:07]}  Kxh3 {[%clk 0:00:12]} 58. Kxg5 {[%clk 0:00:06]}  Kg3 {[%clk 0:00:13]} 0-1

[Event "November 21 Early 2023"]
[Site "https://www.chess.com"]
[Date "2023.11.21"]
[Round "6"]
[White "Begmuratov, Alisher"]
[Black "Baskakov, Egor"]
[Result "1/2-1/2"]
[Board "26"]
[TimeControl "180+1"]
[WhiteFideId "14203367"]
[BlackFideId "24197866"]
[WhiteElo "2387"]
[BlackElo "2225"]
[WhiteTeam "UZB"]
[BlackTeam "RUS"]
[WhiteClock "0:00:13"]
[BlackClock "0:00:17"]

1. e4 {[%clk 0:03:00]}  c5 {[%clk 0:02:58]} 2. Nf3 {[%clk 0:02:59]}  Nf6 {[%clk 0:02:59]} 3. e5 {[%clk 0:02:58]}  Nd5 {[%clk 0:02:59]} 4. Nc3 {[%clk 0:02:58]}  e6 {[%clk 0:02:59]} 5. Nxd5 {[%clk 0:02:57]}  exd5 {[%clk 0:03:00]} 6. d4 {[%clk 0:02:57]}  Nc6 {[%clk 0:03:01]} 7. c3 {[%clk 0:02:57]}  d6 {[%clk 0:03:01]} 8. Bb5 {[%clk 0:02:54]}  Be7 {[%clk 0:03:01]} 9. exd6 {[%clk 0:02:53]}  Bxd6 {[%clk 0:03:02]} 10. Qe2+ {[%clk 0:02:47]}  Be6 {[%clk 0:03:01]} 11. O-O {[%clk 0:02:46]}  O-O {[%clk 0:03:01]} 12. dxc5 {[%clk 0:02:35]}  Bxc5 {[%clk 0:03:01]} 13. Bd3 {[%clk 0:02:36]}  h6 {[%clk 0:02:58]} 14. h3 {[%clk 0:02:35]}  Re8 {[%clk 0:02:56]} 15. Qc2 {[%clk 0:02:35]}  Qf6 {[%clk 0:02:54]} 16. Nh2 {[%clk 0:02:22]}  Rac8 {[%clk 0:02:45]} 17. Qa4 {[%clk 0:02:18]}  d4 {[%clk 0:02:41]} 18. cxd4 {[%clk 0:01:56]}  Nxd4 {[%clk 0:02:27]} 19. Be3 {[%clk 0:01:51]}  Bd5 {[%clk 0:02:19]} 20. Ng4 {[%clk 0:01:43]}  Nf3+ {[%clk 0:02:03]} 21. Kh1 {[%clk 0:01:43]}  Qd6 {[%clk 0:02:00]} 22. Bxc5 {[%clk 0:01:31]}  Qxc5 {[%clk 0:01:57]} 23. gxf3 {[%clk 0:01:24]}  Bxf3+ {[%clk 0:01:58]} 24. Kg1 {[%clk 0:01:20]}  h5 {[%clk 0:01:32]} 25. Rac1 {[%clk 0:01:02]}  Qg5 {[%clk 0:01:28]} 26. Rxc8 {[%clk 0:00:57]}  Rxc8 {[%clk 0:01:29]} 27. Qd7 {[%clk 0:00:51]}  Rd8 {[%clk 0:01:12]} 28. Qf5 {[%clk 0:00:51]}  Qxf5 {[%clk 0:01:12]} 29. Bxf5 {[%clk 0:00:52]}  hxg4 {[%clk 0:01:08]} 30. Bxg4 {[%clk 0:00:51]}  Bc6 {[%clk 0:01:08]} 31. Rd1 {[%clk 0:00:48]}  Re8 {[%clk 0:00:57]} 32. Bd7 {[%clk 0:00:42]}  Rd8 {[%clk 0:00:57]} 33. Bg4 {[%clk 0:00:40]}  Rb8 {[%clk 0:00:47]} 34. f4 {[%clk 0:00:35]}  g6 {[%clk 0:00:46]} 35. Kf2 {[%clk 0:00:33]}  Kg7 {[%clk 0:00:45]} 36. Bf3 {[%clk 0:00:30]}  Rc8 {[%clk 0:00:44]} 37. Rc1 {[%clk 0:00:27]}  Rd8 {[%clk 0:00:32]} 38. Bxc6 {[%clk 0:00:19]}  bxc6 {[%clk 0:00:32]} 39. Rxc6 {[%clk 0:00:18]}  Rd2+ {[%clk 0:00:32]} 40. Ke3 {[%clk 0:00:18]}  Rxb2 {[%clk 0:00:32]} 41. Ra6 {[%clk 0:00:18]}  Rh2 {[%clk 0:00:19]} 42. Rxa7 {[%clk 0:00:17]}  Rxh3+ {[%clk 0:00:20]} 43. Ke2 {[%clk 0:00:17]}  Kf6 {[%clk 0:00:17]} 44. a4 {[%clk 0:00:17]}  Ra3 {[%clk 0:00:17]} 45. a5 {[%clk 0:00:17]}  Ke6 {[%clk 0:00:17]} 46. a6 {[%clk 0:00:17]}  f6 {[%clk 0:00:18]} 47. Rg7 {[%clk 0:00:14]}  Kf5 {[%clk 0:00:18]} 48. a7 {[%clk 0:00:14]}  Kxf4 {[%clk 0:00:18]} 49. Rxg6 {[%clk 0:00:14]}  Rxa7 {[%clk 0:00:16]} 50. Rxf6+ {[%clk 0:00:13]}  Kg5 {[%clk 0:00:17]} 51. Rf3 {[%clk 0:00:13]}  Re7+ {[%clk 0:00:17]} 52. Re3 {[%clk 0:00:13]}  Rxe3+ {[%clk 0:00:17]} 53. Kxe3 {[%clk 0:00:13]} 1/2-1/2

[Event "November 21 Early 2023"]
[Site "https://www.chess.com"]
[Date "2023.11.21"]
[Round "6"]
[White "Rustemov, Alexander"]
[Black "Orujov2008"]
[Result "1-0"]
[Board "27"]
[TimeControl "180+1"]
[WhiteFideId "4119002"]
[WhiteElo "2889"]
[BlackElo "2742"]
[WhiteTeam "RUS"]
[WhiteClock "0:00:31"]
[BlackClock "0:00:00"]

1. d4 {[%clk 0:03:00]}  d5 {[%clk 0:02:56]} 2. c4 {[%clk 0:03:00]}  c6 {[%clk 0:02:56]} 3. cxd5 {[%clk 0:03:00]}  cxd5 {[%clk 0:02:56]} 4. Bf4 {[%clk 0:03:00]}  Nf6 {[%clk 0:02:55]} 5. e3 {[%clk 0:03:01]}  Nc6 {[%clk 0:02:52]} 6. Nc3 {[%clk 0:03:01]}  Bf5 {[%clk 0:02:51]} 7. Bb5 {[%clk 0:02:57]}  e6 {[%clk 0:02:45]} 8. Nf3 {[%clk 0:02:55]}  Nd7 {[%clk 0:02:45]} 9. O-O {[%clk 0:02:52]}  Be7 {[%clk 0:02:37]} 10. Rc1 {[%clk 0:02:50]}  Rc8 {[%clk 0:02:33]} 11. Bxc6 {[%clk 0:02:40]}  bxc6 {[%clk 0:02:26]} 12. Na4 {[%clk 0:02:28]}  g5 {[%clk 0:02:25]} 13. Bg3 {[%clk 0:02:26]}  h5 {[%clk 0:02:24]} 14. h3 {[%clk 0:01:55]}  g4 {[%clk 0:02:20]} 15. hxg4 {[%clk 0:01:55]}  hxg4 {[%clk 0:02:10]} 16. Ne5 {[%clk 0:01:50]}  Nxe5 {[%clk 0:02:07]} 17. Bxe5 {[%clk 0:01:50]}  f6 {[%clk 0:02:06]} 18. Bg3 {[%clk 0:01:49]}  Kf7 {[%clk 0:02:04]} 19. Re1 {[%clk 0:01:44]}  Bd6 {[%clk 0:02:00]} 20. Nc5 {[%clk 0:01:34]}  Qf8 {[%clk 0:01:24]} 21. Kf1 {[%clk 0:01:26]}  Bxg3 {[%clk 0:01:07]} 22. fxg3 {[%clk 0:01:26]}  Qd6 {[%clk 0:01:08]} 23. Kf2 {[%clk 0:01:25]}  Rh2 {[%clk 0:01:01]} 24. Rh1 {[%clk 0:01:24]}  Rch8 {[%clk 0:01:01]} 25. Rxh2 {[%clk 0:01:24]}  Rxh2 {[%clk 0:01:02]} 26. Qb3 {[%clk 0:01:20]}  Qc7 {[%clk 0:00:43]} 27. Qb7 {[%clk 0:01:19]}  Qxb7 {[%clk 0:00:43]} 28. Nxb7 {[%clk 0:01:20]}  Be4 {[%clk 0:00:43]} 29. Rg1 {[%clk 0:01:19]}  Ke7 {[%clk 0:00:38]} 30. Nc5 {[%clk 0:01:19]}  f5 {[%clk 0:00:32]} 31. b4 {[%clk 0:01:14]}  Kd6 {[%clk 0:00:29]} 32. a4 {[%clk 0:01:14]}  Rh8 {[%clk 0:00:26]} 33. Nb7+ {[%clk 0:01:00]}  Kc7 {[%clk 0:00:26]} 34. Na5 {[%clk 0:00:59]}  Kd7 {[%clk 0:00:20]} 35. Rc1 {[%clk 0:00:58]}  Rh2 {[%clk 0:00:20]} 36. Rg1 {[%clk 0:00:51]}  Kc7 {[%clk 0:00:20]} 37. b5 {[%clk 0:00:44]}  cxb5 {[%clk 0:00:17]} 38. axb5 {[%clk 0:00:45]}  Kb6 {[%clk 0:00:15]} 39. Nc6 {[%clk 0:00:45]}  Kxb5 {[%clk 0:00:12]} 40. Nxa7+ {[%clk 0:00:44]}  Kb6 {[%clk 0:00:12]} 41. Nc8+ {[%clk 0:00:44]}  Kc7 {[%clk 0:00:13]} 42. Ne7 {[%clk 0:00:44]}  Kd6 {[%clk 0:00:12]} 43. Ng6 {[%clk 0:00:44]}  Rh7 {[%clk 0:00:09]} 44. Nf4 {[%clk 0:00:41]}  Rb7 {[%clk 0:00:08]} 45. Re1 {[%clk 0:00:41]}  Rb2+ {[%clk 0:00:07]} 46. Re2 {[%clk 0:00:42]}  Rxe2+ {[%clk 0:00:07]} 47. Kxe2 {[%clk 0:00:42]}  Ke7 {[%clk 0:00:07]} 48. Kd2 {[%clk 0:00:41]}  Kd6 {[%clk 0:00:07]} 49. Kc3 {[%clk 0:00:42]}  Kd7 {[%clk 0:00:05]} 50. Kb4 {[%clk 0:00:41]}  Kd6 {[%clk 0:00:06]} 51. Ng6 {[%clk 0:00:33]}  Bxg2 {[%clk 0:00:05]} 52. Ne5 {[%clk 0:00:33]}  Be4 {[%clk 0:00:04]} 53. Kb5 {[%clk 0:00:34]}  Bf3 {[%clk 0:00:04]} 54. Kb6 {[%clk 0:00:34]}  Be4 {[%clk 0:00:05]} 55. Kb7 {[%clk 0:00:34]}  Ke7 {[%clk 0:00:03]} 56. Kc7 {[%clk 0:00:34]}  Bf3 {[%clk 0:00:03]} 57. Nc6+ {[%clk 0:00:34]}  Kf6 {[%clk 0:00:02]} 58. Kd6 {[%clk 0:00:33]}  Bd1 {[%clk 0:00:02]} 59. Ne5 {[%clk 0:00:32]}  Ba4 {[%clk 0:00:01]} 60. Nd3 {[%clk 0:00:31]}  Bb5 {[%clk 0:00:01]} 61. Nf4 {[%clk 0:00:31]}  Ba4 {[%clk 0:00:01]} 62. Nxe6 {[%clk 0:00:30]}  Bb3 {[%clk 0:00:01]} 63. Nf4 {[%clk 0:00:30]}  Ba2 {[%clk 0:00:00]} 64. Nxd5+ {[%clk 0:00:31]} 1-0

[Event "November 21 Early 2023"]
[Site "https://www.chess.com"]
[Date "2023.11.21"]
[Round "6"]
[White "Sjugirov, Sanan"]
[Black "Priasmoro, Novendra"]
[Result "1-0"]
[Board "28"]
[TimeControl "180+1"]
[WhiteFideId "4189302"]
[BlackFideId "7105029"]
[WhiteElo "2569"]
[BlackElo "2412"]
[WhiteTeam "HUN"]
[BlackTeam "INA"]
[WhiteClock "0:00:04"]
[BlackClock "0:00:00"]

1. d4 {[%clk 0:03:00]}  Nf6 {[%clk 0:02:59]} 2. c4 {[%clk 0:03:01]}  e6 {[%clk 0:02:59]} 3. Nf3 {[%clk 0:03:02]}  d5 {[%clk 0:03:00]} 4. Nc3 {[%clk 0:03:02]}  c5 {[%clk 0:02:55]} 5. e3 {[%clk 0:02:58]}  cxd4 {[%clk 0:02:54]} 6. exd4 {[%clk 0:02:56]}  Nc6 {[%clk 0:02:54]} 7. cxd5 {[%clk 0:02:51]}  Nxd5 {[%clk 0:02:54]} 8. Bd3 {[%clk 0:02:51]}  Be7 {[%clk 0:02:52]} 9. O-O {[%clk 0:02:51]}  O-O {[%clk 0:02:53]} 10. Qe2 {[%clk 0:02:46]}  b6 {[%clk 0:02:43]} 11. Rd1 {[%clk 0:02:44]}  Bb7 {[%clk 0:02:42]} 12. a3 {[%clk 0:02:42]}  Rc8 {[%clk 0:02:40]} 13. Ne4 {[%clk 0:02:31]}  Na5 {[%clk 0:02:28]} 14. Neg5 {[%clk 0:02:21]}  g6 {[%clk 0:02:22]} 15. Be3 {[%clk 0:01:31]}  Nxe3 {[%clk 0:01:55]} 16. Qxe3 {[%clk 0:01:32]}  Bf6 {[%clk 0:01:52]} 17. Ne4 {[%clk 0:01:22]}  Bg7 {[%clk 0:01:52]} 18. h4 {[%clk 0:00:56]}  Nb3 {[%clk 0:01:46]} 19. Ba6 {[%clk 0:00:36]}  Bxa6 {[%clk 0:01:38]} 20. Qxb3 {[%clk 0:00:36]}  Bb7 {[%clk 0:01:38]} 21. Qe3 {[%clk 0:00:35]}  Rc2 {[%clk 0:01:37]} 22. Rab1 {[%clk 0:00:33]}  Rc4 {[%clk 0:01:15]} 23. h5 {[%clk 0:00:32]}  Qd5 {[%clk 0:01:10]} 24. Ng3 {[%clk 0:00:28]}  Rd8 {[%clk 0:01:02]} 25. h6 {[%clk 0:00:27]}  Bf6 {[%clk 0:01:01]} 26. Qf4 {[%clk 0:00:13]}  Bxd4 {[%clk 0:00:57]} 27. Rxd4 {[%clk 0:00:11]}  Rxd4 {[%clk 0:00:56]} 28. Qf6 {[%clk 0:00:11]}  Kf8 {[%clk 0:00:44]} 29. Nf1 {[%clk 0:00:06]}  Rg4 {[%clk 0:00:42]} 30. Ne3 {[%clk 0:00:05]}  Qd3 {[%clk 0:00:28]} 31. Rd1 {[%clk 0:00:03]}  Qxd1+ {[%clk 0:00:26]} 32. Nxd1 {[%clk 0:00:04]}  Rxd1+ {[%clk 0:00:26]} 33. Kh2 {[%clk 0:00:05]}  Bxf3 {[%clk 0:00:22]} 34. Qxf3 {[%clk 0:00:02]}  Rh4+ {[%clk 0:00:21]} 35. Kg3 {[%clk 0:00:03]}  Rdd4 {[%clk 0:00:22]} 36. Qa8+ {[%clk 0:00:02]}  Ke7 {[%clk 0:00:21]} 37. Qxa7+ {[%clk 0:00:02]}  Kf6 {[%clk 0:00:22]} 38. Qxb6 {[%clk 0:00:02]}  Rhg4+ {[%clk 0:00:17]} 39. Kf3 {[%clk 0:00:02]}  Rgf4+ {[%clk 0:00:17]} 40. Kg3 {[%clk 0:00:03]}  Rg4+ {[%clk 0:00:18]} 41. Kf3 {[%clk 0:00:03]}  Rgf4+ {[%clk 0:00:15]} 42. Ke3 {[%clk 0:00:02]}  Rfe4+ {[%clk 0:00:06]} 43. Kf3 {[%clk 0:00:02]}  Kf5 {[%clk 0:00:02]} 44. Qc5+ {[%clk 0:00:02]}  Rd5 {[%clk 0:00:02]} 45. Qc2 {[%clk 0:00:02]}  Rd4 {[%clk 0:00:02]} 46. b4 {[%clk 0:00:02]}  Ke5 {[%clk 0:00:02]} 47. Qc5+ {[%clk 0:00:02]}  Rd5 {[%clk 0:00:03]} 48. Qc7+ {[%clk 0:00:02]}  Kd4 {[%clk 0:00:01]} 49. Qa7+ {[%clk 0:00:02]}  Ke5 {[%clk 0:00:02]} 50. Qc7+ {[%clk 0:00:02]}  Kd4 {[%clk 0:00:02]} 51. Qa7+ {[%clk 0:00:02]}  Ke5 {[%clk 0:00:02]} 52. g3 {[%clk 0:00:02]}  Rd3+ {[%clk 0:00:02]} 53. Kg2 {[%clk 0:00:03]}  Rd2 {[%clk 0:00:01]} 54. Qxf7 {[%clk 0:00:03]}  Ree2 {[%clk 0:00:01]} 55. Qf4+ {[%clk 0:00:03]}  Kd5 {[%clk 0:00:00]} 56. b5 {[%clk 0:00:04]} 1-0

[Event "November 21 Early 2023"]
[Site "https://www.chess.com"]
[Date "2023.11.21"]
[Round "6"]
[White "Licznerski, Lukasz"]
[Black "Sadykov, Ramil"]
[Result "1-0"]
[Board "31"]
[TimeControl "180+1"]
[WhiteFideId "1179250"]
[BlackFideId "24113590"]
[WhiteElo "2436"]
[BlackElo "2245"]
[WhiteTeam "POL"]
[BlackTeam "FID"]
[WhiteClock "0:00:23"]
[BlackClock "0:00:00"]

1. e4 {[%clk 0:03:00]}  e5 {[%clk 0:02:41]} 2. Nf3 {[%clk 0:03:00]}  Nf6 {[%clk 0:02:41]} 3. Nxe5 {[%clk 0:02:57]}  d6 {[%clk 0:02:40]} 4. Nf3 {[%clk 0:02:58]}  Nxe4 {[%clk 0:02:41]} 5. c4 {[%clk 0:02:58]}  g6 {[%clk 0:02:20]} 6. d4 {[%clk 0:02:55]}  Bg7 {[%clk 0:02:13]} 7. Bd3 {[%clk 0:02:55]}  Nf6 {[%clk 0:01:49]} 8. O-O {[%clk 0:02:48]}  O-O {[%clk 0:01:49]} 9. h3 {[%clk 0:02:47]}  d5 {[%clk 0:01:38]} 10. Nc3 {[%clk 0:02:47]}  dxc4 {[%clk 0:01:36]} 11. Bxc4 {[%clk 0:02:47]}  Nbd7 {[%clk 0:01:35]} 12. Bg5 {[%clk 0:02:38]}  Nb6 {[%clk 0:01:32]} 13. Bb3 {[%clk 0:02:38]}  Be6 {[%clk 0:01:10]} 14. Bxe6 {[%clk 0:02:34]}  fxe6 {[%clk 0:01:11]} 15. Qb3 {[%clk 0:02:31]}  Nbd5 {[%clk 0:00:44]} 16. Rfe1 {[%clk 0:02:27]}  Qd6 {[%clk 0:00:40]} 17. Bxf6 {[%clk 0:02:25]}  Bxf6 {[%clk 0:00:33]} 18. Ne4 {[%clk 0:02:25]}  Qb6 {[%clk 0:00:32]} 19. Nc5 {[%clk 0:02:22]}  Rfe8 {[%clk 0:00:21]} 20. Rxe6 {[%clk 0:02:14]}  Qxb3 {[%clk 0:00:17]} 21. Rxe8+ {[%clk 0:02:08]}  Rxe8 {[%clk 0:00:18]} 22. axb3 {[%clk 0:02:07]}  b6 {[%clk 0:00:17]} 23. Nd3 {[%clk 0:02:06]}  a5 {[%clk 0:00:17]} 24. Kf1 {[%clk 0:02:03]}  Kf7 {[%clk 0:00:15]} 25. g3 {[%clk 0:01:56]}  Ke6 {[%clk 0:00:14]} 26. Re1+ {[%clk 0:01:54]}  Kd7 {[%clk 0:00:13]} 27. Rxe8 {[%clk 0:01:53]}  Kxe8 {[%clk 0:00:13]} 28. Ke2 {[%clk 0:01:51]}  Ke7 {[%clk 0:00:13]} 29. Nde5 {[%clk 0:01:45]}  Ke6 {[%clk 0:00:13]} 30. Kd3 {[%clk 0:01:45]}  Nb4+ {[%clk 0:00:12]} 31. Ke4 {[%clk 0:01:45]}  Nd5 {[%clk 0:00:09]} 32. Nd3 {[%clk 0:01:39]}  Ne7 {[%clk 0:00:09]} 33. Nfe5 {[%clk 0:01:39]}  Nf5 {[%clk 0:00:05]} 34. Nf4+ {[%clk 0:01:33]}  Kd6 {[%clk 0:00:03]} 35. Ne2 {[%clk 0:01:12]}  Ne7 {[%clk 0:00:03]} 36. f4 {[%clk 0:01:11]}  Ke6 {[%clk 0:00:03]} 37. g4 {[%clk 0:01:08]}  Kd6 {[%clk 0:00:03]} 38. Nc3 {[%clk 0:01:06]}  c6 {[%clk 0:00:02]} 39. f5 {[%clk 0:01:04]}  gxf5+ {[%clk 0:00:02]} 40. gxf5 {[%clk 0:01:05]}  Bg7 {[%clk 0:00:02]} 41. Nf7+ {[%clk 0:00:50]}  Kd7 {[%clk 0:00:02]} 42. Ng5 {[%clk 0:00:46]}  h6 {[%clk 0:00:02]} 43. Nh7 {[%clk 0:00:39]}  Ng8 {[%clk 0:00:02]} 44. Ne2 {[%clk 0:00:39]}  Ke7 {[%clk 0:00:02]} 45. Nf4 {[%clk 0:00:39]}  Kf7 {[%clk 0:00:02]} 46. Nh5 {[%clk 0:00:35]}  Bh8 {[%clk 0:00:02]} 47. h4 {[%clk 0:00:32]}  Ne7 {[%clk 0:00:02]} 48. f6 {[%clk 0:00:30]}  Nd5 {[%clk 0:00:02]} 49. Ke5 {[%clk 0:00:30]}  b5 {[%clk 0:00:02]} 50. Kd6 {[%clk 0:00:27]}  a4 {[%clk 0:00:02]} 51. Kxc6 {[%clk 0:00:27]}  Nxf6 {[%clk 0:00:02]} 52. N7xf6 {[%clk 0:00:26]}  axb3 {[%clk 0:00:02]} 53. Kxb5 {[%clk 0:00:25]}  Ke6 {[%clk 0:00:01]} 54. Kc6 {[%clk 0:00:24]}  Bxf6 {[%clk 0:00:00]} 55. d5+ {[%clk 0:00:23]} 1-0